bitfinex-derivatives/quotes_BTCF0:USTF0_20240830
["timestamp","ask_amount","ask_price","bid_price","bid_amount"]
[1724990191582,0.17724082,59140.0,59139.0,0.57526217]
[1724990197188,0.17724082,59140.0,59139.0,0.45526217]
[1724990197383,0.17724082,59140.0,59139.0,0.57526217]
[1724990198287,0.00127849,59140.0,59139.0,0.57526217]
[1724990198490,0.00027849,59140.0,59139.0,0.57526217]
[1724990198788,0.00127849,59140.0,59139.0,0.57626217]
[1724990203297,0.00127849,59140.0,59139.0,0.37172017]
[1724990203502,0.00127849,59140.0,59139.0,0.01092017]
[1724990203702,0.09277849,59140.0,59139.0,0.01092017]
[1724990204301,0.17731849,59140.0,59139.0,0.01092017]
[1724990209805,1.28459849,59140.0,59139.0,0.01092017]
[1724990209999,1.32502722,59140.0,59139.0,0.01092017]
[1724990210200,0.72502722,59140.0,59139.0,0.01092017]
[1724990211899,0.21774722,59140.0,59139.0,0.01092017]
[1724990212100,1.36913849,59140.0,59139.0,0.01092017]
[1724990212297,1.36913849,59140.0,59139.0,0.001]
[1724990212298,1.40956722,59140.0,59139.0,0.001]
[1724990212497,0.169086,59138.0,59137.0,0.00025373]
[1724990212802,0.47282038,59138.0,59137.0,0.00025373]
[1724990212999,1.62052911,59138.0,59137.0,0.00025373]
[1724990215614,1.63249334,59138.0,59137.0,0.00025373]
[1724990218009,0.084553,59131.0,59130.0,0.0039]
[1724990218208,0.084563,59124.0,59123.0,0.084564]
[1724990218602,0.27134925,59124.0,59123.0,0.084564]
[1724990219009,0.26734925,59124.0,59123.0,0.084564]
[1724990219613,0.26734925,59124.0,59123.0,0.095564]
[1724990219816,0.26734925,59124.0,59123.0,0.011]
[1724990220205,0.26734925,59124.0,59123.0,0.02116545]
[1724990221510,0.26734925,59124.0,59123.0,0.03216545]
[1724990225703,0.26734925,59124.0,59123.0,0.022]
[1724990225920,1.45931225,59124.0,59123.0,0.022]
[1724990226721,0.81542715,59124.0,59123.0,0.022]
[1724990226927,0.30802715,59124.0,59123.0,0.142]
[1724990227214,0.30802715,59124.0,59123.0,0.226565]
[1724990227215,0.18678625,59124.0,59123.0,0.226565]
[1724990227420,0.18678625,59124.0,59123.0,0.271765]
[1724990227615,0.19608033,59127.0,59125.0,0.084562]
[1724990227827,0.19608033,59127.0,59126.0,0.2135]
[1724990228006,0.084558,59128.0,59126.0,0.2135]
[1724990228209,0.19608033,59127.0,59126.0,0.2135]
[1724990228716,0.28063933,59127.0,59126.0,0.0935]
[1724990228913,0.28063933,59127.0,59126.0,0.2135]
[1724990229214,0.084559,59127.0,59126.0,0.2135]
[1724990229416,0.276224,59127.0,59126.0,0.2135]
[1724990229618,0.276224,59127.0,59126.0,0.2205]
[1724990231020,0.191665,59127.0,59126.0,0.30506]
[1724990231417,0.00025373,59129.0,59128.0,0.084558]
[1724990231821,0.19223905,59129.0,59128.0,0.084558]
[1724990232528,0.31223905,59129.0,59128.0,0.089558]
[1724990232818,0.31223905,59129.0,59128.0,0.094558]
[1724990235118,0.31223905,59129.0,59128.0,0.10440162]
[1724990236921,0.39679505,59129.0,59128.0,0.10440162]
[1724990242933,0.39679505,59129.0,59128.0,0.01984362]
[1724990244323,0.39701505,59129.0,59128.0,0.01984362]
[1724990244522,0.39701505,59129.0,59128.0,0.01]
[1724990249236,0.46643077,59129.0,59128.0,0.01]
[1724990250932,0.34643077,59129.0,59128.0,0.01]
[1724990253142,0.46643077,59129.0,59128.0,0.01]
[1724990257324,0.39701505,59129.0,59128.0,0.01]
[1724990260939,0.48157105,59129.0,59128.0,0.01]
[1724990261141,0.084569,59120.0,59111.0,0.3608]
[1724990261345,0.12,59119.0,59118.0,0.00025373]
[1724990261637,0.39803886,59119.0,59118.0,0.00025373]
[1724990262035,0.27803886,59119.0,59118.0,0.12025373]
[1724990262240,0.27803886,59119.0,59118.0,0.20482573]
[1724990262833,0.27803886,59119.0,59118.0,0.23282573]
[1724990263638,0.27903886,59119.0,59118.0,0.23282573]
[1724990263838,0.27903886,59119.0,59118.0,0.11282573]
[1724990264840,0.27903886,59119.0,59118.0,0.02825373]
[1724990265241,0.39903886,59119.0,59118.0,0.02825373]
[1724990269241,0.84440886,59119.0,59118.0,0.02825373]
[1724990269446,0.95473399,59119.0,59118.0,0.02825373]
[1724990269838,0.88531827,59119.0,59118.0,0.02825373]
[1724990270347,0.88431827,59119.0,59118.0,0.00425373]
[1724990270547,1.99175827,59119.0,59118.0,0.00625373]
[1724990271947,1.99175827,59119.0,59118.0,0.00225373]
[1724990272146,1.99175827,59119.0,59118.0,0.00525373]
[1724990272547,2.06117399,59119.0,59118.0,0.00525373]
[1724990273354,1.99175827,59119.0,59118.0,0.00525373]
[1724990275956,1.99197827,59119.0,59118.0,0.00525373]
[1724990276348,0.16916,59112.0,59111.0,0.0039]
[1724990276550,0.08459,59105.0,59104.0,0.0466]
[1724990276750,0.20459,59105.0,59104.0,0.0466]
[1724990277059,0.38476379,59105.0,59104.0,0.0466]
[1724990277655,0.38576379,59105.0,59104.0,0.0606]
[1724990278160,0.37576379,59105.0,59104.0,0.0606]
[1724990278956,0.37676379,59105.0,59104.0,0.0726]
[1724990279149,0.37676379,59105.0,59104.0,0.0706]
[1724990281760,0.25676379,59105.0,59104.0,0.0706]
[1724990281958,0.25676379,59105.0,59104.0,0.1197]
[1724990286767,0.25676379,59105.0,59104.0,0.204292]
[1724990288363,0.18217379,59105.0,59104.0,0.204292]
[1724990290269,0.18217379,59105.0,59104.0,0.711852]
[1724990291462,0.18217379,59105.0,59104.0,1.311852]
[1724990293470,0.002,59105.0,59104.0,1.311852]
[1724990293671,0.002,59105.0,59104.0,0.711852]
[1724990294264,0.002,59105.0,59104.0,1.311852]
[1724990294670,0.002,59105.0,59104.0,0.711852]
[1724990297063,0.002,59105.0,59104.0,1.311852]
[1724990297269,0.002,59105.0,59104.0,0.711852]
[1724990297470,0.002,59105.0,59104.0,1.311852]
[1724990297670,0.002,59105.0,59104.0,0.204292]
[1724990297872,0.002,59105.0,59104.0,0.711852]
[1724990298070,0.002,59105.0,59104.0,0.204292]
[1724990299077,0.002,59105.0,59104.0,0.565092]
[1724990299474,0.12,59110.0,59104.0,0.4805]
[1724990299977,0.1964097,59109.0,59108.0,0.084586]
[1724990301367,0.1974097,59109.0,59108.0,0.090586]
[1724990302370,0.1984097,59109.0,59108.0,0.098586]
[1724990311878,0.1984097,59109.0,59108.0,0.218586]
[1724990313881,0.1984097,59109.0,59108.0,0.579386]
[1724990315277,0.1984097,59109.0,59108.0,0.459386]
[1724990315473,0.1984097,59109.0,59108.0,0.579386]
[1724990321795,0.1984097,59109.0,59108.0,0.663972]
[1724990323286,0.1984097,59109.0,59108.0,1.171532]
[1724990323484,0.002,59109.0,59108.0,1.771532]
[1724990323681,0.00025373,59114.0,59113.0,0.169158]
[1724990323887,0.04090941,59129.0,59127.0,0.084559]
[1724990324081,0.0457,59129.0,59127.0,0.084559]
[1724990324283,0.23494263,59128.0,59127.0,0.084559]
[1724990324483,0.18514263,59128.0,59127.0,0.084559]
[1724990324996,0.19314263,59128.0,59127.0,0.085559]
[1724990327282,0.20614263,59128.0,59127.0,0.086559]
[1724990332990,0.20614263,59128.0,59127.0,0.447359]
[1724990335398,0.20614263,59128.0,59127.0,0.086559]
[1724990335797,0.20614263,59128.0,59127.0,0.447359]
[1724990338204,0.20614263,59128.0,59127.0,0.086559]
[1724990339801,0.20636263,59128.0,59127.0,0.086559]
[1724990342399,1.39828063,59128.0,59127.0,0.002]
[1724990342600,1.43919004,59128.0,59127.0,0.002]
[1724990343005,0.33183004,59128.0,59127.0,0.002]
[1724990343505,0.34216076,59128.0,59127.0,0.002]
[1724990344204,0.30125135,59128.0,59127.0,0.002]
[1724990352816,0.38580935,59128.0,59127.0,0.002]
[1724990356712,0.89316935,59128.0,59127.0,0.002]
[1724990356911,0.93407876,59128.0,59127.0,0.002]
[1724990357218,0.93385876,59128.0,59127.0,0.002]
[1724990362316,0.42649876,59128.0,59127.0,0.002]
[1724990362919,0.78729876,59128.0,59127.0,0.002]
[1724990363511,0.74638935,59128.0,59127.0,0.002]
[1724990364813,0.16913,59123.0,59122.0,0.00025373]
[1724990365124,0.83978124,59123.0,59122.0,0.00025373]
[1724990365307,0.16915,59116.0,59115.0,0.0039]
[1724990365507,0.084585,59109.0,59108.0,0.0039]
[1724990365716,0.080693,59103.0,59102.0,0.3707632]
[1724990366010,0.38955345,59103.0,59102.0,0.3707632]
[1724990366213,0.38855345,59103.0,59102.0,0.3707632]
[1724990366809,0.37355345,59103.0,59102.0,0.3707632]
[1724990367407,0.37355345,59103.0,59102.0,0.0099632]
[1724990367620,0.37355345,59103.0,59102.0,0.3608]
[1724990368715,0.37455345,59103.0,59102.0,0.3608]
[1724990368911,0.37455345,59103.0,59097.0,0.08485573]
[1724990368912,0.084595,59102.0,59097.0,0.00025373]
[1724990369111,0.445401,59098.0,59097.0,0.00025373]
[1724990369319,0.565401,59098.0,59097.0,0.00025373]
[1724990369622,0.75629473,59098.0,59097.0,0.00025373]
[1724990369923,0.79720414,59098.0,59097.0,0.00025373]
[1724990370218,0.75629473,59098.0,59097.0,0.00025373]
[1724990370521,0.76729473,59098.0,59097.0,0.00125373]
[1724990372721,0.77829473,59098.0,59097.0,0.00125373]
[1724990373514,0.29749473,59098.0,59097.0,0.00125373]
[1724990376021,0.41749473,59098.0,59097.0,0.00125373]
[1724990380425,0.84053373,59098.0,59076.0,0.445431]
[1724990380621,0.12,59080.0,59079.0,0.1419]
[1724990380815,0.204626,59080.0,59079.0,0.1419]
[1724990381014,0.38611826,59080.0,59079.0,0.1419]
[1724990381728,0.38611826,59080.0,59079.0,0.0951]
[1724990381926,0.084631,59077.0,59076.0,0.37091202]
[1724990382130,0.204631,59077.0,59076.0,0.37091202]
[1724990382424,0.38337716,59077.0,59076.0,0.37091202]
[1724990382628,0.38237716,59077.0,59076.0,0.37091202]
[1724990383323,0.38337716,59077.0,59076.0,0.37191202]
[1724990385827,0.38437716,59077.0,59076.0,0.37191202]
[1724990386520,0.18074616,59077.0,59076.0,1.47971202]
[1724990387918,0.18074616,59077.0,59076.0,1.56434402]
[1724990388319,0.18074616,59077.0,59076.0,0.96434402]
[1724990388519,0.18074616,59077.0,59076.0,0.45654402]
[1724990390228,0.18074616,59077.0,59076.0,0.37191202]
[1724990390427,0.26537716,59077.0,59076.0,0.37191202]
[1724990400525,0.26537716,59077.0,59076.0,0.45654402]
[1724990404922,0.26559716,59077.0,59076.0,0.45654402]
[1724990405131,0.26559716,59077.0,59076.0,0.37191202]
[1724990407832,0.26459716,59077.0,59076.0,0.37191202]
[1724990408033,0.26559716,59077.0,59076.0,0.37191202]
[1724990408631,0.26459716,59077.0,59076.0,0.37191202]
[1724990408833,0.27459716,59077.0,59076.0,0.37191202]
[1724990409137,0.18896616,59077.0,59076.0,0.45554402]
[1724990409732,0.19996616,59077.0,59076.0,0.45554402]
[1724990410535,0.19996616,59077.0,59076.0,0.57554402]
[1724990411342,0.19996616,59077.0,59076.0,0.45554402]
[1724990414525,0.01080903,59077.0,59076.0,0.45554402]
[1724990415038,0.01080903,59077.0,59076.0,0.57554402]
[1724990415039,0.20688695,59077.0,59076.0,0.57554402]
[1724990416135,0.21088695,59077.0,59076.0,0.57554402]
[1724990416328,0.20507792,59077.0,59076.0,0.57554402]
[1724990417846,0.20407792,59077.0,59076.0,0.57554402]
[1724990419334,0.20407792,59077.0,59076.0,0.45554402]
[1724990429045,0.20407792,59077.0,59076.0,0.57554402]
[1724990430144,0.20407792,59077.0,59076.0,0.74554402]
[1724990436754,0.20429792,59077.0,59076.0,0.74554402]
[1724990437354,0.20429792,59077.0,59076.0,0.45554402]
[1724990439059,0.17604273,59077.0,59076.0,1.93797602]
[1724990439256,0.0039,59084.0,59083.0,0.084622]
[1724990439457,0.00025373,59085.0,59084.0,0.084621]
[1724990439845,0.18004093,59085.0,59084.0,0.084621]
[1724990440553,0.19404093,59085.0,59084.0,0.084621]
[1724990440758,0.19404093,59085.0,59084.0,0.177921]
[1724990441164,0.09765293,59085.0,59084.0,1.370302]
[1724990441351,0.0039,59091.0,59090.0,0.084612]
[1724990441550,0.0039,59098.0,59090.0,0.6508]
[1724990441760,0.0956,59103.0,59100.0,0.084597]
[1724990441953,0.0956,59103.0,59102.0,0.3608]
[1724990442355,0.2862994,59103.0,59102.0,0.3608]
[1724990443463,0.3002994,59103.0,59102.0,0.3618]
[1724990443959,0.3002994,59103.0,59102.0,0.3628]
[1724990443960,0.3112994,59103.0,59102.0,0.3628]
[1724990445165,0.3112994,59103.0,59102.0,0.37309874]
[1724990445556,0.3958924,59103.0,59102.0,0.37309874]
[1724990445964,0.43692339,59103.0,59102.0,0.37309874]
[1724990446269,0.3958924,59103.0,59102.0,0.37309874]
[1724990447356,0.3469924,59103.0,59102.0,0.37309874]
[1724990447562,0.3002924,59103.0,59102.0,0.37309874]
[1724990448466,0.2156994,59103.0,59102.0,0.45769374]
[1724990453273,0.2016994,59103.0,59102.0,0.45669374]
[1724990453861,0.1936994,59103.0,59102.0,0.45569374]
[1724990454561,0.1906994,59103.0,59102.0,0.83028874]
[1724990454758,0.1956994,59103.0,59102.0,0.74569374]
[1724990454961,0.005,59103.0,59102.0,0.74569374]
[1724990455168,0.01,59103.0,59102.0,0.74569374]
[1724990455369,0.18688783,59103.0,59102.0,0.74569374]
[1724990460779,0.18188783,59103.0,59102.0,0.74869374]
[1724990461674,0.00025373,59108.0,59107.0,0.084588]
[1724990461871,0.00025373,59108.0,59107.0,0.445388]
[1724990462078,0.18417938,59108.0,59107.0,0.735388]
[1724990463578,0.18717938,59108.0,59107.0,0.735388]
[1724990464162,0.18917938,59108.0,59107.0,0.735388]
[1724990466882,0.18917938,59108.0,59107.0,0.374588]
[1724990467179,0.18917938,59108.0,59107.0,1.096188]
[1724990469466,0.18939938,59108.0,59107.0,1.096188]
[1724990469973,0.18939938,59108.0,59107.0,0.374588]
[1724990470287,0.18939938,59108.0,59107.0,1.096188]
[1724990471085,0.00547373,59108.0,59107.0,1.096188]
[1724990474472,0.00547373,59108.0,59107.0,0.806188]
[1724990474674,0.1990152,59108.0,59107.0,0.7216]
[1724990474985,0.2836012,59108.0,59107.0,0.7216]
[1724990475185,0.3291012,59108.0,59107.0,0.3608]
[1724990476173,1.4366612,59108.0,59107.0,0.3608]
[1724990476382,0.084593,59103.0,59102.0,0.01029874]
[1724990476688,0.084601,59098.0,59097.0,0.00415373]
[1724990476980,0.445401,59098.0,59097.0,0.00025373]
[1724990477184,1.13301208,59098.0,59097.0,0.00025373]
[1724990477479,0.77221208,59098.0,59097.0,0.00025373]
[1724990477671,1.12701208,59098.0,59097.0,0.00025373]
[1724990478274,0.61937208,59098.0,59097.0,0.00825373]
[1724990478487,1.12701208,59098.0,59097.0,0.00825373]
[1724990478883,1.12801208,59098.0,59097.0,0.00825373]
[1724990479081,1.12801208,59098.0,59097.0,0.02133281]
[1724990479287,1.12801208,59098.0,59097.0,0.01125373]
[1724990480684,1.41801208,59098.0,59097.0,0.01125373]
[1724990481073,2.05730316,59098.0,59097.0,0.00625373]
[1724990481687,2.14190416,59098.0,59097.0,0.00625373]
[1724990481981,0.084608,59093.0,59092.0,0.0039]
[1724990482185,0.9608,59093.0,59085.0,0.3608]
[1724990482478,0.54618636,59093.0,59085.0,0.3608]
[1724990483373,0.54618636,59093.0,59085.0,0.37072466]
[1724990483779,0.084618,59086.0,59085.0,0.37072466]
[1724990483979,0.076618,59086.0,59085.0,0.37072466]
[1724990484283,0.25487943,59086.0,59085.0,0.00992466]
[1724990484583,0.08462,59085.0,59083.0,0.00025373]
[1724990484775,0.11842,59085.0,59083.0,0.00025373]
[1724990484978,0.31778243,59084.0,59083.0,0.00025373]
[1724990485384,0.29678243,59084.0,59083.0,0.00025373]
[1724990487291,0.29778243,59084.0,59083.0,0.00025373]
[1724990487502,0.29878243,59084.0,59083.0,0.00025373]
[1724990493696,0.30178243,59084.0,59083.0,0.00025373]
[1724990494295,0.30778243,59084.0,59083.0,0.00025373]
[1724990494591,0.31678243,59084.0,59083.0,0.00025373]
[1724990494888,0.32378243,59084.0,59083.0,0.00025373]
[1724990498096,0.29788243,59084.0,59083.0,0.00025373]
[1724990500896,0.21326143,59084.0,59083.0,0.08487573]
[1724990501097,0.21348143,59084.0,59083.0,0.08487573]
[1724990508010,0.21348143,59084.0,59083.0,0.20487573]
[1724990509099,0.21348143,59084.0,59083.0,0.00025373]
[1724990509402,0.29810243,59084.0,59083.0,0.00025373]
[1724990518208,0.29788243,59084.0,59083.0,0.00025373]
[1724990521008,1.85106343,59084.0,59083.0,0.00025373]
[1724990521207,1.89093376,59084.0,59083.0,0.00025373]
[1724990522602,1.90127195,59084.0,59083.0,0.00025373]
[1724990522801,1.07996042,59084.0,59083.0,0.00025373]
[1724990523002,1.2717938,59084.0,59083.0,0.00025373]
[1724990523612,1.8717938,59084.0,59083.0,0.00025373]
[1724990523805,1.2717938,59084.0,59083.0,0.00025373]
[1724990524006,1.8717938,59084.0,59083.0,0.00025373]
[1724990525403,1.2717938,59084.0,59083.0,0.00025373]
[1724990525609,1.8717938,59084.0,59083.0,0.00025373]
[1724990527414,0.7640338,59084.0,59083.0,0.00025373]
[1724990531316,0.66907461,59084.0,59083.0,0.00025373]
[1724990532620,0.66929461,59084.0,59083.0,0.00025373]
[1724990532922,0.30849461,59084.0,59083.0,0.00025373]
[1724990533123,0.62942428,59084.0,59083.0,0.00025373]
[1724990533337,0.66929461,59084.0,59083.0,0.00025373]
[1724990533521,0.78929461,59084.0,59083.0,0.00025373]
[1724990535529,0.42849461,59084.0,59083.0,0.00025373]
[1724990535933,0.38862428,59084.0,59083.0,0.00025373]
[1724990541733,0.26862428,59084.0,59083.0,0.00025373]
[1724990542031,0.38862428,59084.0,59083.0,0.00025373]
[1724990542227,0.42849461,59084.0,59083.0,0.00025373]
[1724990543720,1.45968371,59084.0,59069.0,0.3608]
[1724990543927,0.12,59070.0,59069.0,0.3608]
[1724990544324,0.39827487,59070.0,59069.0,0.3608]
[1724990545126,0.27827487,59070.0,59069.0,0.3608]
[1724990545331,0.27827487,59070.0,59069.0,0.565442]
[1724990545534,0.19363387,59070.0,59069.0,0.565442]
[1724990545921,0.17830615,59073.0,59071.0,0.084639]
[1724990546127,0.17830615,59073.0,59072.0,0.12]
[1724990546329,0.084635,59074.0,59072.0,0.12]
[1724990546533,0.00025373,59075.0,59074.0,0.084635]
[1724990546734,0.00025373,59075.0,59074.0,0.445435]
[1724990547034,0.17967541,59075.0,59074.0,0.445435]
[1724990548230,0.18367541,59075.0,59074.0,0.445435]
[1724990548942,0.18567541,59075.0,59074.0,0.445435]
[1724990554837,0.18567541,59075.0,59074.0,0.4556092]
[1724990555735,0.36224,59107.0,59075.0,0.50776]
[1724990555938,0.084592,59104.0,59103.0,0.12]
[1724990556142,0.084595,59102.0,59101.0,0.3608]
[1724990556441,0.084595,59102.0,59094.0,0.4808]
[1724990556442,0.084599,59100.0,59094.0,0.4808]
[1724990556739,0.19117836,59099.0,59094.0,0.4808]
[1724990556939,0.01995166,59099.0,59094.0,0.4808]
[1724990557937,0.01995166,59099.0,59094.0,0.3608]
[1724990558142,0.02295166,59099.0,59094.0,0.3608]
[1724990558340,0.02295166,59099.0,59094.0,0.445405]
[1724990558836,0.02295166,59099.0,59094.0,0.3608]
[1724990559038,0.02295166,59099.0,59096.0,0.084603]
[1724990559352,0.02695166,59099.0,59097.0,0.084602]
[1724990559736,0.02395166,59099.0,59097.0,0.084602]
[1724990559941,0.02595166,59099.0,59098.0,0.29]
[1724990560142,0.02995166,59099.0,59098.0,0.3385]
[1724990560333,0.02395166,59099.0,59098.0,0.3385]
[1724990560642,0.03395166,59099.0,59098.0,0.3385]
[1724990561144,0.03495166,59099.0,59098.0,0.3385]
[1724990561746,0.02795166,59099.0,59098.0,0.3385]
[1724990562646,0.02095166,59099.0,59098.0,0.3395]
[1724990562842,0.02095166,59099.0,59098.0,0.0495]
[1724990563238,0.02095166,59099.0,59098.0,0.001]
[1724990566145,0.02095166,59099.0,59098.0,0.3618]
[1724990567952,0.02095166,59099.0,59098.0,0.446401]
[1724990570549,0.02095166,59099.0,59098.0,0.085601]
[1724990570951,0.02095166,59099.0,59098.0,0.446401]
[1724990580062,0.02095166,59099.0,59098.0,0.566401]
[1724990583956,0.02095166,59099.0,59098.0,0.736401]
[1724990587856,0.09039216,59099.0,59098.0,0.736401]
[1724990590266,0.09039216,59099.0,59098.0,0.375601]
[1724990590571,0.09039216,59099.0,59098.0,1.097201]
[1724990592169,0.02095166,59099.0,59098.0,1.097201]
[1724990594369,0.02117166,59099.0,59098.0,1.097201]
[1724990597972,0.02117166,59099.0,59098.0,0.375601]
[1724990598372,0.02117166,59099.0,59098.0,1.097201]
[1724990603367,0.02117166,59099.0,59098.0,1.181802]
[1724990604973,0.06892142,59102.0,59101.0,0.169192]
[1724990605177,0.0039,59109.0,59104.0,0.084592]
[1724990605366,0.0465,59118.0,59115.0,0.080675]
[1724990605567,0.0465,59118.0,59117.0,0.3608]
[1724990605980,0.0465,59118.0,59117.0,0.565373]
[1724990605981,0.22369991,59118.0,59117.0,0.565373]
[1724990607075,0.29311896,59118.0,59117.0,0.565373]
[1724990607670,0.30711896,59118.0,59117.0,0.565373]
[1724990608771,0.32111896,59118.0,59117.0,0.57426848]
[1724990610270,0.25169991,59118.0,59117.0,0.57426848]
[1724990612982,0.23769991,59118.0,59117.0,0.57326848]
[1724990613285,0.18019991,59118.0,59117.0,0.57326848]
[1724990613771,0.18019991,59118.0,59117.0,0.57526848]
[1724990613973,0.17719991,59118.0,59117.0,0.57526848]
[1724990614373,0.00025373,59123.0,59122.0,0.084566]
[1724990614578,0.00025373,59123.0,59122.0,0.565366]
[1724990614774,0.19168526,59123.0,59122.0,0.565366]
[1724990617078,0.20068526,59123.0,59122.0,0.566366]
[1724990617279,0.20668526,59123.0,59122.0,0.567366]
[1724990620889,0.20668526,59123.0,59122.0,0.616766]
[1724990621190,0.20668526,59123.0,59122.0,0.701332]
[1724990622189,0.04394211,59130.0,59129.0,0.084556]
[1724990622379,0.04394211,59130.0,59129.0,0.565356]
[1724990622579,0.23141298,59130.0,59129.0,0.565356]
[1724990623491,0.24541298,59130.0,59129.0,0.566356]
[1724990623694,0.24541298,59130.0,59129.0,0.567356]
[1724990623989,0.25941298,59130.0,59129.0,0.567356]
[1724990624790,0.25841298,59130.0,59129.0,0.567356]
[1724990625279,0.28388992,59130.0,59129.0,0.567356]
[1724990626091,0.28388992,59130.0,59129.0,0.57531993]
[1724990626092,0.27288992,59130.0,59129.0,0.57531993]
[1724990630590,0.27288992,59130.0,59129.0,0.45531993]
[1724990631182,0.27288992,59130.0,59129.0,0.57531993]
[1724990633386,0.20347087,59130.0,59129.0,0.57531993]
[1724990640397,0.27288992,59130.0,59129.0,0.57531993]
[1724990642088,0.35744492,59130.0,59129.0,0.37076393]
[1724990642589,0.35744492,59130.0,59129.0,0.49076393]
[1724990643992,0.43563663,59130.0,59129.0,0.49076393]
[1724990644186,0.43563663,59130.0,59129.0,0.57531993]
[1724990648288,0.28802587,59130.0,59129.0,0.21451993]
[1724990648495,0.28802587,59130.0,59129.0,0.57531993]
[1724990648990,0.28802587,59130.0,59129.0,0.21451993]
[1724990649696,0.28802587,59130.0,59129.0,0.57531993]
[1724990650091,0.28802587,59130.0,59129.0,0.21451993]
[1724990650505,0.28802587,59130.0,59129.0,0.57531993]
[1724990652298,0.87994087,59130.0,59129.0,0.002]
[1724990652497,0.084566,59122.0,59121.0,0.0039]
[1724990652702,0.12,59122.0,59119.0,0.3213]
[1724990653006,0.31617274,59122.0,59119.0,0.3213]
[1724990653904,0.084569,59120.0,59119.0,0.3213]
[1724990654295,0.27491825,59120.0,59119.0,0.3213]
[1724990655204,0.27591825,59120.0,59119.0,0.3213]
[1724990655507,0.27591825,59120.0,59119.0,0.40587]
[1724990655508,0.19134925,59120.0,59119.0,0.40587]
[1724990657405,0.19134925,59120.0,59119.0,0.44537]
[1724990658611,0.2607683,59120.0,59119.0,0.44537]
[1724990659507,0.2607683,59120.0,59119.0,0.08457]
[1724990659711,0.2607683,59120.0,59119.0,0.44537]
[1724990662407,0.10018611,59120.0,59119.0,0.44537]
[1724990663502,0.03076706,59120.0,59119.0,0.44537]
[1724990669921,0.11533606,59120.0,59119.0,0.44537]
[1724990676009,0.11533606,59120.0,59119.0,0.3608]
[1724990676213,0.31990506,59120.0,59119.0,0.3608]
[1724990677825,0.19990506,59120.0,59119.0,0.3608]
[1724990678120,0.26932411,59120.0,59119.0,0.3608]
[1724990678717,0.18475511,59120.0,59116.0,0.3608]
[1724990679017,0.06941905,59119.0,59116.0,0.3608]
[1724990679217,0.06941905,59118.0,59116.0,0.3608]
[1724990679416,0.084578,59114.0,59113.0,0.12]
[1724990679623,0.15399705,59114.0,59113.0,0.12804895]
[1724990679818,0.34514384,59114.0,59113.0,0.12804895]
[1724990680019,0.34514384,59114.0,59113.0,0.48884895]
[1724990680421,0.34514384,59114.0,59113.0,0.57342795]
[1724990680620,0.34514384,59114.0,59113.0,0.62122795]
[1724990681017,0.33914384,59114.0,59113.0,0.62122795]
[1724990681624,0.33914384,59114.0,59113.0,0.62722795]
[1724990681828,0.34014384,59114.0,59113.0,0.63422795]
[1724990683515,0.34014384,59114.0,59113.0,0.27342795]
[1724990683717,0.34014384,59114.0,59113.0,0.63422795]
[1724990686115,0.27072479,59114.0,59113.0,0.63422795]
[1724990686319,0.27072479,59114.0,59113.0,0.51422795]
[1724990686521,0.27072479,59114.0,59113.0,0.46642795]
[1724990686922,0.27072479,59114.0,59113.0,0.38184895]
[1724990688627,0.19214679,59114.0,59113.0,0.58642795]
[1724990689422,0.19214679,59114.0,59113.0,0.63602795]
[1724990692329,0.19214679,59114.0,59113.0,0.46642795]
[1724990693931,0.19214679,59114.0,59113.0,0.10562795]
[1724990694131,0.19214679,59114.0,59113.0,0.46642795]
[1724990694533,0.19214679,59114.0,59113.0,0.10562795]
[1724990694718,0.19214679,59114.0,59113.0,0.46642795]
[1724990698329,0.27672479,59114.0,59113.0,0.46642795]
[1724990699034,0.27672479,59114.0,59113.0,0.10562795]
[1724990699235,0.27672479,59114.0,59113.0,0.46642795]
[1724990701030,0.27672479,59114.0,59113.0,0.10562795]
[1724990701638,0.27672479,59114.0,59113.0,0.46642795]
[1724990702529,0.27672479,59114.0,59113.0,0.3738]
[1724990702530,0.39672479,59114.0,59113.0,0.3738]
[1724990702837,0.90420479,59114.0,59113.0,0.3738]
[1724990703133,0.93457976,59114.0,59113.0,0.3738]
[1724990703523,1.01915776,59114.0,59113.0,0.3738]
[1724990703834,0.51167776,59114.0,59113.0,0.3738]
[1724990704040,0.48130279,59114.0,59113.0,0.3738]
[1724990705347,1.58878279,59114.0,59113.0,0.013]
[1724990705533,1.61915776,59114.0,59113.0,0.013]
[1724990705730,0.89915776,59114.0,59113.0,0.013]
[1724990705945,0.39167776,59114.0,59113.0,0.013]
[1724990706138,0.36130279,59114.0,59113.0,0.013]
[1724990707039,0.48130279,59114.0,59113.0,0.013]
[1724990708635,0.84210279,59114.0,59113.0,0.013]
[1724990708835,0.87247776,59114.0,59113.0,0.013]
[1724990710139,0.30709976,59114.0,59113.0,0.013]
[1724990710339,0.19214679,59114.0,59113.0,0.217579]
[1724990710839,0.19214679,59114.0,59113.0,0.624979]
[1724990711043,0.19214679,59114.0,59113.0,1.132459]
[1724990711936,0.19236679,59114.0,59113.0,1.132459]
[1724990712243,0.19236679,59114.0,59113.0,0.624979]
[1724990716147,0.19236679,59114.0,59113.0,0.264179]
[1724990716348,0.19236679,59114.0,59113.0,0.985779]
[1724990719539,0.19236679,59114.0,59113.0,1.493259]
[1724990720344,0.19236679,59114.0,59113.0,0.771659]
[1724990720552,0.19236679,59114.0,59113.0,1.493259]
[1724990723155,0.19236679,59114.0,59113.0,0.985779]
[1724990727051,0.19214679,59114.0,59113.0,0.985779]
[1724990733747,0.19214679,59114.0,59113.0,0.264179]
[1724990733951,0.19214679,59114.0,59113.0,0.985779]
[1724990737067,0.19214679,59114.0,59113.0,0.264179]
[1724990737362,0.19214679,59114.0,59113.0,0.865779]
[1724990737569,0.19214679,59114.0,59113.0,0.939179]
[1724990740362,0.39672479,59114.0,59113.0,0.7346]
[1724990740665,0.39672479,59114.0,59113.0,0.013]
[1724990740970,0.42711732,59114.0,59113.0,0.013]
[1724990741272,0.52341732,59114.0,59113.0,0.013]
[1724990741769,0.52363732,59114.0,59113.0,0.013]
[1724990742673,1.68530279,59114.0,59113.0,0.013]
[1724990742863,1.68530279,59114.0,59109.0,0.3608]
[1724990742864,0.084579,59113.0,59109.0,0.3608]
[1724990743062,0.592099,59113.0,59109.0,0.3608]
[1724990743264,1.38434236,59113.0,59109.0,0.3608]
[1724990743758,1.41473489,59113.0,59109.0,0.3608]
[1724990744370,1.41573489,59113.0,59112.0,0.00625373]
[1724990744959,0.81573489,59113.0,59112.0,0.00625373]